{"text_format":"1","workbook":"xlsx","n_sheets":5,"sheets":["General Data","Alignment Data","Ditch Grades","3D Files","Comments"],"not_rendered":{"charts":0,"images":1,"macros":0,"external_links":2,"defined_names":10,"comments":0,"pivot_tables":0},"unopened":[],"bounds":{"document_bytes":16777216,"sheet_cells":100000,"rows_first":2000,"rows_last":500,"rows_between":2000,"halvings":0,"cell_chars":16384,"cell_head_chars":4096},"cells_cut":0,"cells_raw":0,"read":"whole","date_system":"1900"}

{"sheet":"General Data","index":0,"n_rows":47,"n_cols":2,"rows_kept":47,"cut":false,"hidden":false,"merged":[]}
[]
[null,"Iowa Department of Transportation"]
[null,"Office of Design  "]
[null,"Project Data Summary"]
[]
[null,"Revised Date:                                      "]
[null,"Project Information"]
[null,"County:"]
[null,"PIN:"]
[null,"Project Number:"]
[null,"Project Location:"]
[null,"Project Description:"]
[null,"Project Geographic Coordinate System:"]
[null,"Design Engineer:"]
[null,"Design Team:"]
[]
[null,"SS4 Design File Information"]
[null,"Directory:"]
[null,"Proposed Linework File:"]
[]
[null,"Geometry Files Directory:"]
[null,"GPK directory and file:"]
[]
[null,"Corridor Files:"]
[]
[null,"Cross Section Files:"]
[]
[null,"Proposed Surfaces:"]
[]
[null,"Sheet Files:"]
[]
[null,"Proposed Text Files:"]
[]
[null,"Design Criteria:"]
[]
[null,"Survey File Information"]
[null,"Directory:"]
[null,"Survey File:"]
[null,"Terrain File:"]
[null,"Raster File:"]
[]
[null,"Photogrammetry File Information"]
[null,"Directory:"]
[null,"Photogrammetry File:"]
[null,"Terrain File:"]
[null,"TIN File:"]
[null,"Raster File:"]

{"sheet":"Alignment Data","index":1,"n_rows":33,"n_cols":9,"rows_kept":33,"cut":false,"hidden":false,"merged":[[1,1,1,8]]}
[]
[null,"Horizontal and Vertical Alignments"]
[null,"Roadway","SS4 GEO File","Survey Chain","Construction Chain","Beginning Station","End Station","Construction Profile","Notes"]
[null,"Mainline"]
[]
[]
[]
[null,"Side Roads"]
[]
[]
[]
[null,"Ramps/ Loops"]
[]
[]
[]
[]
[]
[]
[]
[]
[]
[]
[]
[null,"Entrances"]
[]
[]
[]
[]
[null,"Returns"]
[]
[]
[]
[null,"Miscellaneous"]

{"sheet":"Ditch Grades","index":2,"n_rows":35,"n_cols":7,"rows_kept":35,"cut":false,"hidden":false,"merged":[]}
[]
[null,"Ditch Grades"]
[null,"Roadway","SS4 File","Profile Name","Corridor Control Method","Beginning Station","End Station"]
[null,"Mainline"]
[]
[]
[]
[]
[]
[]
[null,"Side Roads"]
[]
[]
[]
[null,"Ramps/ Loops"]
[]
[]
[]
[]
[]
[]
[]
[]
[]
[]
[]
[null,"Miscellaneous"]
[]
[]
[]
[]
[]
[]
[]
[null,"Entrances"]

{"sheet":"3D Files","index":3,"n_rows":34,"n_cols":4,"rows_kept":34,"cut":false,"hidden":false,"merged":[[0,1,0,2],[0,3,0,4],[1,1,1,2],[1,3,1,4]]}
[null,"File Size",null,"File Updated"]
["XML Files"]
["Existing"]
[null,null,{"$f":"IF(B4=\"\",\"\",\"KB\")","v":""}]
[null,null,""]
[null,null,""]
[null,null,""]
[null,null,""]
[null,null,""]
["Proposed",null,""]
[]
[]
[]
[]
[]
[]
[]
[null,null,""]
[null,null,""]
["3D DGN Files",null,""]
[null,null,""]
[null,null,""]
[null,null,""]
[null,null,""]
[null,null,""]
[null,null,""]
[null,null,{"$f":"IF(B27=\"\",\"\",\"KB\")","v":""}]
[null,null,""]
[null,null,""]
[null,null,""]
[null,null,""]
[null,null,""]
[null,null,""]
[null,null,""]

{"sheet":"Comments","index":4,"n_rows":2,"n_cols":2,"rows_kept":2,"cut":false,"hidden":false,"merged":[]}
[]
[null,"Comments"]